fUSD/lending_fUSD_20251224
["ID","MTS","AMOUNT","RATE_DAILY","PERIOD"]
[399650519,1766586598673,500.0,0.00032876,120]
[399650520,1766586598743,497.70989042,0.00032876,120]
[399650521,1766586598807,500.0,0.00032876,120]
[399650522,1766586598878,500.0,0.00032876,120]
[399650523,1766586598941,500.0,0.00032876,120]
[399650524,1766586599013,500.0,0.00032876,120]
[399650525,1766586599077,500.0,0.00032876,120]
[399650526,1766586599143,500.0,0.00032876,120]
[399650527,1766586599206,500.0,0.00032876,120]
[399650528,1766586599273,500.0,0.00032876,120]
[399650529,1766586599336,500.0,0.00032876,120]
[399650530,1766586599398,530.23511789,0.00032876,120]
[399650531,1766586599467,500.0,0.00032876,120]
[399650532,1766586599530,500.0,0.00032876,120]
[399650533,1766586599593,227.1454091,0.00032876,120]
[399650534,1766586599659,500.0,0.00032876,120]
[399650535,1766586599723,500.0,0.00032876,120]
[399650536,1766586599794,547.5514509,0.00032876,120]
[399650537,1766586599887,500.0,0.00032876,120]
[399650538,1766586599967,333.24277999,0.00032876,120]
[399650539,1766586600045,500.0,0.00032876,120]
[399650540,1766586600273,500.0,0.00032876,120]
[399650541,1766586600427,500.0,0.00032876,120]
[399650542,1766586600509,500.0,0.00032876,120]
[399650543,1766586600653,167.3120649,0.00032876,120]
[399650544,1766586600776,500.0,0.00032876,120]
[399650545,1766586601031,500.0,0.00032876,120]
[399650546,1766586601272,629.04758374,0.00032876,120]
[399650547,1766586601666,500.0,0.00032876,120]
[399650548,1766586601893,500.0,0.00032876,120]
[399650549,1766586601994,500.0,0.00032876,120]
[399650550,1766586602123,500.0,0.00032876,120]
[399650551,1766586602196,500.0,0.00032876,120]
[399650552,1766586602300,500.0,0.00032876,120]
[399650553,1766586602380,500.0,0.00032876,120]
[399650554,1766586602456,500.0,0.00032876,120]
[399650555,1766586602526,500.0,0.00032876,120]
[399650556,1766586602603,500.0,0.00032876,120]
[399650557,1766586602671,500.0,0.00032876,120]
[399650558,1766586602830,500.0,0.00032876,120]
[399650559,1766586603107,500.0,0.00032876,120]
[399650560,1766586603180,500.0,0.00032876,120]
[399650561,1766586603380,500.0,0.00032876,120]
[399650562,1766586603450,365.92339036,0.00032876,120]
[399650563,1766586603719,500.0,0.00032876,120]
[399650564,1766586603831,500.0,0.00032876,120]
[399650565,1766586604023,500.0,0.00032876,120]
[399650566,1766586604109,500.0,0.00032876,120]
[399650567,1766586604736,500.0,0.00032876,120]
[399650568,1766586604821,237.55309314,0.00032876,120]
[399650569,1766586604934,500.0,0.00032876,120]
[399650570,1766586605010,517.76331036,0.00032876,120]
[399650571,1766586605095,500.0,0.00032876,120]
[399650572,1766586605206,500.0,0.00032876,120]
[399650573,1766586605280,500.0,0.00032876,120]
[399650574,1766586605473,500.0,0.00032876,120]
[399650575,1766586605739,500.0,0.00032876,120]
[399650576,1766586605991,500.0,0.00032876,120]
[399650577,1766586606243,500.0,0.00032876,120]
[399650578,1766586606599,503.46686423,0.00032876,120]
[399650579,1766586606677,500.0,0.00032876,120]
[399650580,1766586606760,500.0,0.00032876,120]
[399650581,1766586606827,198.2907127,0.00032876,120]
[399650582,1766586606925,500.0,0.00032876,120]
[399650583,1766586607132,500.0,0.00032876,120]
[399650584,1766586607373,500.0,0.00032876,120]
[399650585,1766586607612,500.0,0.00032876,120]
[399650586,1766586607779,500.0,0.00032876,120]
[399650587,1766586607873,500.0,0.00032876,120]
[399650588,1766586608016,500.0,0.00032876,120]
[399650589,1766586608107,500.0,0.00032876,120]
[399650590,1766586608250,500.0,0.00032876,120]
[399650591,1766586608388,636.16698616,0.00032876,120]
[399650592,1766586608476,500.0,0.00032876,120]
[399650593,1766586608689,500.0,0.00032876,120]
[399650594,1766586608756,500.0,0.00032876,120]
[399650595,1766586608843,500.0,0.00032876,120]
[399650596,1766586608921,500.0,0.00032876,120]
[399650597,1766586608992,500.0,0.00032876,120]
[399650598,1766586609092,500.0,0.00032876,120]
[399650599,1766586609163,500.0,0.00032876,120]
[399650600,1766586609229,595.30069286,0.00032876,120]
[399650601,1766586609331,500.0,0.00032876,120]
[399650602,1766586609409,500.0,0.00032876,120]
[399650603,1766586609567,500.0,0.00032876,120]
[399650604,1766586609633,500.0,0.00032876,120]
[399650605,1766586609734,500.0,0.00032876,120]
[399650606,1766586609809,500.0,0.00032876,120]
[399650607,1766586609980,500.0,0.00032876,120]
[399650608,1766586610051,500.0,0.00032876,120]
[399650609,1766586610120,500.0,0.00032876,120]
[399650610,1766586610203,500.0,0.00032876,120]
[399650611,1766586610290,413.84136644,0.00032876,120]
[399650612,1766586610368,500.0,0.00032876,120]
[399650613,1766586610438,550.53985217,0.00032876,120]
[399650614,1766586610515,500.0,0.00032876,120]
[399650615,1766586610584,152.82964265,0.00032876,120]
[399650616,1766586610675,500.0,0.00032876,120]
[399650617,1766586611039,500.0,0.00032876,120]
[399650618,1766586611294,500.0,0.00032876,120]
[399650619,1766586611527,500.0,0.00032876,120]
[399650620,1766586611811,500.0,0.00032876,120]
[399650621,1766586612029,204.62092325,0.00032876,120]
[399650622,1766586612159,500.0,0.00032876,120]
[399650623,1766586612278,500.0,0.00032876,120]
[399650624,1766586612386,500.0,0.00032876,120]
[399650625,1766586612519,500.0,0.00032876,120]
[399650626,1766586612655,500.0,0.00032876,120]
[399650627,1766586612745,500.0,0.00032876,120]
[399650628,1766586612888,500.0,0.00032876,120]
[399650629,1766586612994,500.0,0.00032876,120]
[399650630,1766586613212,500.0,0.00032876,120]
[399650631,1766586613770,500.0,0.00032876,120]
[399650632,1766586613852,500.0,0.00032876,120]
[399650633,1766586613929,500.0,0.00032876,120]
[399650634,1766586614006,514.07277484,0.00032876,120]
[399650635,1766586614075,500.0,0.00032876,120]
[399650636,1766586614162,500.0,0.00032876,120]
[399650637,1766586614235,500.0,0.00032876,120]
[399650638,1766586614315,500.0,0.00032876,120]
[399650639,1766586614380,500.0,0.00032876,120]
[399650640,1766586614454,500.0,0.00032876,120]
[399650641,1766586614566,500.0,0.00032876,120]
[399650642,1766586614632,500.0,0.00032876,120]
[399650643,1766586615261,500.0,0.00032876,120]
[399650644,1766586615383,500.0,0.00032876,120]
[399650645,1766586615450,500.0,0.00032876,120]
[399650646,1766586615524,500.0,0.00032876,120]
[399650647,1766586615590,500.0,0.00032876,120]
[399650648,1766586615687,500.0,0.00032876,120]
[399650649,1766586615761,500.0,0.00032876,120]
[399650650,1766586615839,500.0,0.00032876,120]
[399650651,1766586615910,500.0,0.00032876,120]
[399650652,1766586616115,500.0,0.00032876,120]
[399650653,1766586616180,500.0,0.00032876,120]
[399650654,1766586616261,500.0,0.00032876,120]
[399650655,1766586616341,500.0,0.00032876,120]
[399650656,1766586616412,500.0,0.00032876,120]
[399650657,1766586616483,500.0,0.00032876,120]
[399650658,1766586616562,500.0,0.00032876,120]
[399650659,1766586616648,260.21922523,0.00032876,120]
[399650660,1766586616720,500.0,0.00032876,120]
[399650661,1766586616786,500.0,0.00032876,120]
[399650662,1766586616856,500.0,0.00032876,120]
[399650663,1766586616953,413.311862,0.00032876,120]
[399650664,1766586617041,500.0,0.00032876,120]
[399650665,1766586617111,500.0,0.00032876,120]
[399650666,1766586617199,500.0,0.00032876,120]
[399650667,1766586617273,202.87475067,0.00032876,120]
[399650668,1766586617371,500.0,0.00032876,120]
[399650669,1766586617533,509.45565278,0.00032876,120]
[399650670,1766586618617,500.0,0.00032876,120]
[399650671,1766586618810,500.0,0.00032876,120]
[399650672,1766586618900,159.20426125,0.00032876,120]
[399650673,1766586618991,499.2117641,0.00032876,120]
[399650674,1766586619933,500.0,0.00032876,120]
[399650675,1766586620148,500.0,0.00032876,120]
[399650676,1766586620311,500.0,0.00032876,120]
[399650677,1766586620382,500.0,0.00032876,120]
[399650678,1766586620448,507.82619448,0.00032876,120]
[399650679,1766586620518,500.0,0.00032876,120]
[399650680,1766586620664,500.0,0.00032876,120]
[399650681,1766586620729,500.0,0.00032876,120]
[399650682,1766586620799,500.0,0.00032876,120]
[399650683,1766586620863,500.0,0.00032876,120]
[399650684,1766586620964,500.0,0.00032876,120]
[399650685,1766586621049,500.0,0.00032876,120]
[399650686,1766586621114,500.0,0.00032876,120]
[399650687,1766586621183,500.0,0.00032876,120]
[399650688,1766586621274,500.0,0.00032876,120]
[399650689,1766586621361,500.0,0.00032876,120]
[399650690,1766586621423,500.0,0.00032876,120]
[399650691,1766586621498,500.0,0.00032876,120]
[399650692,1766586621566,500.0,0.00032876,120]
[399650693,1766586621653,500.0,0.00032876,120]
[399650694,1766586621734,375.42572335,0.00032876,120]
[399650695,1766586621810,500.0,0.00032876,120]
[399650696,1766586621874,500.0,0.00032876,120]
[399650697,1766586621958,510.84801919,0.00032876,120]
[399650698,1766586622062,500.0,0.00032876,120]
[399650699,1766586622130,500.0,0.00032876,120]
[399650700,1766586622347,500.0,0.00032876,120]
[399650701,1766586622414,500.0,0.00032876,120]
[399650702,1766586622560,161.10002832,0.00032876,120]
[399650703,1766586622671,500.0,0.00032876,120]
[399650704,1766586622771,500.0,0.00032876,120]
[399650705,1766586622899,500.0,0.00032876,120]
[399650706,1766586623267,500.0,0.00032876,120]
[399650707,1766586623516,500.0,0.00032876,120]
[399650708,1766586623761,577.7314687,0.00032876,120]
[399650709,1766586624279,500.0,0.00032876,120]
[399650710,1766586624374,500.0,0.00032876,120]
[399650711,1766586624478,511.40432991,0.00032876,120]
[399650712,1766586624554,500.0,0.00032876,120]
[399650713,1766586624697,500.0,0.00032876,120]
[399650714,1766586624929,500.0,0.00032876,120]
[399650715,1766586625177,500.0,0.00032876,120]
[399650716,1766586625729,500.0,0.00032876,120]
[399650717,1766586625795,192.07170435,0.00032876,120]
[399650718,1766586625880,500.0,0.00032876,120]
[399650719,1766586625979,500.0,0.00032876,120]
[399650720,1766586626095,500.0,0.00032876,120]
[399650721,1766586626191,500.0,0.00032876,120]
[399650722,1766586626274,500.0,0.00032876,120]
[399650723,1766586626348,500.0,0.00032876,120]
[399650724,1766586626438,513.25770794,0.00032876,120]
[399650725,1766586626501,500.0,0.00032876,120]
[399650726,1766586626567,500.0,0.00032876,120]
[399650727,1766586626674,500.0,0.00032876,120]
[399650728,1766586626822,500.0,0.00032876,120]
[399650729,1766586626926,457.83493354,0.00032876,120]
[399650730,1766586627163,500.0,0.00032876,120]
[399650731,1766586627231,500.0,0.00032876,120]
[399650732,1766586627387,500.0,0.00032876,120]
[399650733,1766586627457,500.0,0.00032876,120]
[399650734,1766586627617,500.0,0.00032876,120]
[399650735,1766586627693,500.0,0.00032876,120]
[399650736,1766586627762,506.26473993,0.00032876,120]
[399650737,1766586627940,500.0,0.00032876,120]
[399650738,1766586628014,500.0,0.00032876,120]
[399650739,1766586628104,500.0,0.00032876,120]
[399650740,1766586628180,500.0,0.00032876,120]
[399650741,1766586628248,500.0,0.00032876,120]
[399650742,1766586628620,500.0,0.00032876,120]
[399650743,1766586628686,500.0,0.00032876,120]
[399650744,1766586628833,500.0,0.00032876,120]
[399650745,1766586628903,500.0,0.00032876,120]
[399650746,1766586628975,500.0,0.00032876,120]
[399650747,1766586629055,500.0,0.00032876,120]
[399650748,1766586629224,500.0,0.00032876,120]
[399650749,1766586629306,596.21631561,0.00032876,120]
[399650750,1766586629377,500.0,0.00032876,120]
[399650751,1766586629468,500.0,0.00032876,120]
[399650752,1766586629573,500.0,0.00032876,120]
[399650753,1766586629640,500.0,0.00032876,120]
[399650754,1766586629708,500.0,0.00032876,120]
[399650755,1766586629824,530.15502764,0.00032876,120]
[399650756,1766586629905,500.0,0.00032876,120]
[399650757,1766586629977,500.0,0.00032876,120]
[399650758,1766586630067,500.0,0.00032876,120]
[399650759,1766586630140,500.0,0.00032876,120]
[399650760,1766586630231,500.0,0.00032876,120]
[399650761,1766586630344,500.0,0.00032876,120]
[399650762,1766586630409,500.0,0.00032876,120]
[399650763,1766586630481,500.0,0.00032876,120]
[399650764,1766586630581,500.0,0.00032876,120]
[399650765,1766586630644,500.0,0.00032876,120]
[399650766,1766586630713,500.0,0.00032876,120]
[399650767,1766586630816,500.0,0.00032876,120]
[399650768,1766586630888,169.65576715,0.00032876,120]
[399650769,1766586630962,500.0,0.00032876,120]
[399650770,1766586631162,500.0,0.00032876,120]
[399650771,1766586631254,484.00864585,0.00032876,120]
[399650772,1766586631345,500.0,0.00032876,120]
[399650773,1766586631440,500.0,0.00032876,120]
[399650774,1766586631551,500.0,0.00032876,120]
[399650775,1766586631679,500.0,0.00032876,120]
[399650776,1766586631774,500.0,0.00032876,120]
[399650777,1766586631875,500.0,0.00032876,120]
[399650785,1766586632002,500.0,0.00032876,120]
[399650788,1766586632080,500.0,0.00032876,120]
[399650789,1766586632095,-2404.98,0.00014433,2]
[399650790,1766586632106,-2168.22,0.00014433,2]
[399650791,1766586632118,-236.76,0.00014433,2]
[399650792,1766586632128,-150.0,0.0001444,2]
[399650793,1766586632138,-261.8394808,0.00014441,2]
[399650794,1766586632148,-300.0,0.00014441,2]
[399650795,1766586632159,-300.0,0.00014441,2]
[399650796,1766586632168,-1200.0,0.00014441,2]
[399650797,1766586632178,-19306.15259033,0.00014441,2]
[399650798,1766586632188,-269.0,0.00014441,2]
[399650799,1766586632198,-440.60604672,0.00014442,2]
[399650800,1766586632208,-395.49993698,0.00014442,2]
[399650801,1766586632218,-371.64082973,0.00014442,2]
[399650802,1766586632228,-500.0,0.00014442,2]
[399650803,1766586632238,-500.0,0.00014442,2]
[399650804,1766586632248,-500.0,0.00014442,2]
[399650805,1766586632258,-500.0,0.00014442,2]
[399650806,1766586632268,-500.0,0.00014442,2]
[399650807,1766586632278,-500.0,0.00014442,2]
[399650808,1766586632288,-500.0,0.00014442,2]
[399650809,1766586632298,-500.0,0.00014442,2]
[399650810,1766586632309,-500.0,0.00014442,2]
[399650811,1766586632318,-500.0,0.00014442,2]
[399650812,1766586632329,-500.0,0.00014442,2]
[399650813,1766586632339,-500.0,0.00014442,2]
[399650814,1766586632349,-500.0,0.00014442,2]
[399650815,1766586632358,-500.0,0.00014442,2]
[399650816,1766586632368,-500.0,0.00014442,2]
[399650817,1766586632378,-500.0,0.00014442,2]
[399650818,1766586632388,-500.0,0.00014442,2]
[399650819,1766586632398,-488.67339627,0.00014442,2]
[399650820,1766586632408,-500.0,0.00014442,2]
[399650821,1766586632418,-500.0,0.00014442,2]
[399650823,1766586632428,-500.0,0.00014442,2]
[399650825,1766586632439,-500.0,0.00014442,2]
[399650827,1766586632449,-500.0,0.00014442,2]
[399650829,1766586632459,-500.0,0.00014442,2]
[399650831,1766586632471,-350.0,0.00014442,2]
[399650833,1766586632481,-500.0,0.00014443,2]
[399650834,1766586632493,-500.0,0.00014443,2]
[399650835,1766586632503,-452.87068526,0.00014443,2]
[399650836,1766586632514,-25279.85732231,0.00014443,2]
[399650837,1766586632527,-5250.81327803,0.00014443,2]
[399650838,1766586632551,-1498.41572974,0.00014443,2]
[399650839,1766586632563,-609.653476,0.00014443,2]
[399650840,1766586632580,-4112.31389714,0.00014443,2]
[399650841,1766586632592,-1434.21810536,0.00014443,2]
[399650843,1766586632659,500.0,0.00032876,120]
[399650844,1766586632734,-1123.04045911,0.00014443,2]
[399650845,1766586632746,-14034.27471683,0.00014443,2]
[399650846,1766586632826,500.0,0.00032876,120]
[399650847,1766586632845,-32222.94331177,0.00014443,2]
[399650848,1766586632859,-377.31369087,0.00014443,2]
[399650849,1766586632881,-4402.16735575,0.00014443,2]
[399650850,1766586632952,180.69491678,0.00032876,120]
[399650851,1766586633029,500.0,0.00032876,120]
[399650852,1766586633106,500.0,0.00032876,120]
[399650853,1766586633239,500.0,0.00032876,120]
[399650854,1766586633329,500.0,0.00032876,120]
[399650855,1766586633969,500.0,0.00032876,120]
[399650856,1766586634043,500.0,0.00032876,120]
[399650857,1766586634144,500.0,0.00032876,120]
[399650858,1766586634223,500.0,0.00032876,120]
[399650859,1766586634317,500.0,0.00032876,120]
[399650860,1766586634388,358.17991574,0.00032876,120]
[399650861,1766586634548,500.0,0.00032876,120]
[399650862,1766586634650,500.0,0.00032876,120]
[399650863,1766586634809,500.0,0.00032876,120]
[399650864,1766586634886,500.0,0.00032876,120]
[399650865,1766586634962,500.0,0.00032876,120]
[399650866,1766586635050,500.0,0.00032876,120]
[399650867,1766586635201,500.0,0.00032876,120]
[399650868,1766586635329,500.0,0.00032876,120]
[399650869,1766586635403,500.0,0.00032876,120]
[399650870,1766586635488,500.0,0.00032876,120]
[399650871,1766586635569,500.0,0.00032876,120]
[399650872,1766586635671,448.59298299,0.00032876,120]
[399650873,1766586636337,500.0,0.00032876,120]
[399650874,1766586636493,500.0,0.00032876,120]
[399650875,1766586636575,500.0,0.00032876,120]
[399650876,1766586636696,518.55622532,0.00032876,120]
[399650877,1766586636788,500.0,0.00032876,120]
[399650878,1766586636884,488.41869134,0.00032876,120]
[399650879,1766586638075,500.0,0.00032876,120]
[399650880,1766586638132,-909654.98865709,0.00014443,2]
[399650881,1766586638144,-1024.708,0.00014542,2]
[399650882,1766586638155,-177.07,0.00014542,2]
[399650883,1766586638165,-8282.55,0.00014542,2]
[399650884,1766586638175,-9999.99,0.00014542,2]
[399650885,1766586638187,-9999.99,0.00014542,2]
[399650886,1766586638198,-150.99,0.00014542,2]
[399650887,1766586638208,-9633.98,0.00014542,2]
[399650888,1766586638218,-1004.87064085,0.00014542,2]
[399650889,1766586638229,-18587.16,0.00014543,2]
[399650890,1766586638240,-200.0,0.00014543,2]
[399650891,1766586638251,-25487.4,0.00014543,2]
[399650892,1766586638262,-166.77,0.00014543,2]
[399650893,1766586638272,-1410.4,0.00014543,2]
[399650894,1766586638283,-395.49993696,0.00014599,2]
[399650895,1766586638294,-999.99,0.00014673,2]
[399650896,1766586638304,-267.3552,0.00014673,2]
[399650897,1766586638315,-1113.30940197,0.0001469,2]
[399650898,1766586638325,-500.0,0.0001469,2]
[399650899,1766586638336,-19306.15259024,0.00014714,2]
[399650900,1766586638347,-203.59064575,0.00014736,2]
[399650901,1766586638357,-23150.1492,0.00014738,2]
[399650902,1766586638367,-1000.0,0.00014738,2]
[399650903,1766586638377,-415.4933,0.00014738,2]
[399650904,1766586638388,-395.49993696,0.00014756,2]
[399650905,1766586638399,-150.0,0.000148,2]
[399650906,1766586638409,-1220.11,0.000148,2]
[399650907,1766586638420,-150.0,0.000148,2]
[399650908,1766586638430,-150.0,0.000148,2]
[399650909,1766586638441,-1220.11,0.000148,2]
[399650910,1766586638452,-1220.11,0.000148,2]
[399650911,1766586638463,-150.0,0.000148,2]
[399650912,1766586638481,-1220.11,0.000148,2]
[399650913,1766586638492,-1220.11,0.000148,2]
[399650914,1766586638504,-1220.11,0.000148,2]
[399650915,1766586638514,-1220.11,0.000148,2]
[399650916,1766586638526,-151.0,0.00014829,2]
[399650917,1766586638536,-151.0,0.00014829,2]
[399650918,1766586638547,-153.43746121,0.00014829,2]
[399650919,1766586638558,-1497.71,0.00014837,2]
[399650921,1766586638569,-500.0,0.00014837,2]
[399650923,1766586638581,-500.0,0.00014837,2]
[399650925,1766586638592,-500.0,0.00014837,2]
[399650927,1766586638602,-115336.874984,0.00014838,2]
[399650929,1766586638612,-39127.2004786,0.00014838,2]
[399650931,1766586638623,-3103.1619815,0.00014838,2]
[399650933,1766586638634,-76069.3615054,0.00014838,2]
[399650972,1766586639050,-1220.11,0.00014856,2]
[399650976,1766586639083,-999.0,0.00014873,3]
[399650978,1766586639094,-1220.11,0.000149,2]
[399650980,1766586639105,-150.0,0.000149,2]
[399650982,1766586639115,-1220.11,0.000149,2]
[399650984,1766586639126,-1220.11,0.000149,2]
[399650986,1766586639137,-13763.6,0.0001494,2]
[399650988,1766586639147,-500.0,0.00014964,2]
[399650990,1766586639157,-19306.15259024,0.00014987,2]
[399650992,1766586639167,-5014.92,0.00014999,2]
[399650994,1766586639178,-1008.0,0.00015,2]
[399650996,1766586639189,-2041.47960317,0.00015,2]
[399650998,1766586639199,-7947.26999932,0.00015,2]
[399651000,1766586639209,-21363.10346556,0.00015,2]
[399651002,1766586639220,-1155.1798605,0.00015,2]
[399651004,1766586639231,-33595.71545948,0.00015,2]
[399651006,1766586639242,-3239.64,0.00015015,2]
[399651008,1766586639252,-200.18296457,0.00015075,2]
[399651010,1766586639262,-1497.71,0.00015111,2]
[399651012,1766586639273,-500.0,0.00015123,2]
[399651014,1766586639284,-500.0,0.00015134,2]
[399651016,1766586639294,-27591.04624507,0.00015149,2]
[399651018,1766586639304,-174.83400543,0.00015173,2]
[399651020,1766586639314,-500.85459949,0.00015173,2]
[399651022,1766586639324,-224.16527175,0.00015173,2]
[399651024,1766586639334,-500.0,0.00015173,2]
[399651026,1766586639344,-500.0,0.00015173,2]
[399651028,1766586639355,-500.0,0.00015173,2]
[399651030,1766586639365,-160.33441349,0.00015173,2]
[399651032,1766586639375,-500.0,0.00015173,2]
[399651034,1766586639386,-162.11626746,0.00015173,2]
[399651036,1766586639395,-500.35332728,0.00015173,2]
[399651038,1766586639405,-501.65480371,0.00015173,2]
[399651041,1766586639417,-500.0,0.00015173,2]
[399651043,1766586639427,-480.93651792,0.00015173,2]
[399651045,1766586639444,-500.0,0.00015173,2]
[399651047,1766586639454,-500.0,0.00015173,2]
[399651049,1766586639465,-500.0,0.00015173,2]
[399651052,1766586639476,-500.0,0.00015173,2]
[399651053,1766586639486,-501.97166731,0.00015173,2]
[399651055,1766586639496,-500.0,0.00015173,2]
[399651057,1766586639507,-323.90908008,0.00015183,2]
[399651060,1766586639517,-166.66,0.00015204,2]
[399651062,1766586639527,-500.0,0.00015238,2]
[399651064,1766586639537,-150.0,0.00015256,2]
[399651066,1766586639547,-19306.15259024,0.00015261,2]
[399651068,1766586639558,-500.0,0.00015288,2]
[399651070,1766586639569,-1517.64,0.000153,2]
[399651072,1766586639579,-339.76,0.00015364,2]
[399651074,1766586639591,-1220.11,0.0001537,2]
[399651075,1766586639600,-500.0,0.00015379,2]
[399651077,1766586639611,-200.0,0.0001538,2]
[399651078,1766586639621,-207.4,0.0001538,2]
[399651080,1766586639632,-215.0738,0.0001538,2]
[399651081,1766586639643,-223.0315306,0.0001538,2]
[399651082,1766586639654,-231.28369723,0.0001538,2]
[399651083,1766586639664,-239.84119403,0.0001538,2]
[399651084,1766586639674,-248.71531821,0.0001538,2]
[399651085,1766586639685,-257.91778498,0.0001538,2]
[399651086,1766586639695,-267.46074303,0.0001538,2]
[399651087,1766586639705,-277.35679052,0.0001538,2]
[399651088,1766586639715,-543.0,0.0001538,2]
[399651089,1766586639726,-209.40437684,0.0001538,2]
[399651090,1766586639736,-646.81207338,0.0001538,2]
[399651091,1766586639747,-322.6107,0.0001538,2]
[399651092,1766586639758,-500.0,0.0001538,2]
[399651093,1766586639767,-500.0,0.0001538,2]
[399651094,1766586639778,-500.0,0.0001538,2]
[399651095,1766586639788,-500.0,0.0001538,2]
[399651096,1766586639798,-500.0,0.0001538,2]
[399651097,1766586639813,-500.0,0.0001538,2]
[399651098,1766586639823,-500.0,0.0001538,2]
[399651099,1766586639834,-171.70723872,0.0001538,2]
[399651101,1766586639844,-500.0,0.0001538,2]
[399651102,1766586639854,-385.74923715,0.0001538,2]
[399651103,1766586639865,-162.42297638,0.0001538,2]
[399651104,1766586639876,-620.0,0.0001538,2]
[399651105,1766586639887,-500.0,0.0001538,2]
[399651106,1766586639897,-500.0,0.0001538,2]
[399651107,1766586639908,-500.0,0.0001538,2]
[399651108,1766586639918,-500.0,0.0001538,2]
[399651109,1766586639929,-500.0,0.0001538,2]
[399651110,1766586639939,-365.89373099,0.0001538,2]
[399651111,1766586639949,-578.20924308,0.0001538,2]
[399651112,1766586639961,-1497.71,0.00015385,2]
[399651113,1766586639976,-506.05021686,0.000154,2]
[399651114,1766586639987,-163.8,0.00015456,2]
[399651115,1766586639997,-192.47,0.00015459,2]
[399651116,1766586640007,-151.0,0.00015527,2]
[399651117,1766586640018,-19306.15259024,0.00015534,2]
[399651118,1766586640028,-151.0,0.00015536,2]
[399651119,1766586640041,-203.24926981,0.00015555,2]
[399651120,1766586640051,-500.0,0.00015555,2]
[399651121,1766586640062,-270.80702977,0.00015555,2]
[399651122,1766586640071,-559.91929246,0.00015555,2]
[399651123,1766586640082,-151.0,0.00015555,2]
[399651124,1766586640092,-151.0,0.00015555,2]
[399651125,1766586640103,-16707.49002494,0.00015556,2]
[399651126,1766586640113,-255.0,0.00015566,2]
[399651127,1766586640124,-1000.0,0.00015595,2]
[399651128,1766586640134,-1000.0,0.00015622,2]
[399651129,1766586640145,-1000.0,0.00015622,2]
[399651130,1766586640155,-1000.0,0.00015622,2]
[399651131,1766586640166,-1000.0,0.00015622,2]
[399651132,1766586640177,-339.346,0.00015622,2]
[399651134,1766586640187,-1000.0,0.00015627,2]
[399651136,1766586640197,-1000.0,0.00015627,2]
[399651137,1766586640220,-195.0,0.00015634,2]